[Event "2026 Biel Blitz Open"]
[Site "Biel, CH"]
[Date "2026.07.19"]
[Round "5"]
[White "Maruntis, Patrik-Robert"]
[Black "Materia, Matteo"]
[Result "1/2-1/2"]
[Board "21"]
[TimeControl "180+2"]
[WhiteFideId "1259997"]
[BlackFideId "45150575"]
[WhiteElo "2167"]
[BlackElo "1881"]
[WhiteClock "0:00:20"]
[BlackClock "0:03:02"]
[Variant "Standard"]
[EndDate "2026.07.19"]
[EndTime "13:16:35"]

1. b3 {[%clk 0:02:58]}  Nf6 {[%clk 0:03:02]} 2. Nf3 {[%clk 0:02:56]}  g6 {[%clk 0:03:03]} 3. Bb2 {[%clk 0:02:57]}  Bg7 {[%clk 0:03:03]}
4. e3 {[%clk 0:02:57]}  b6 {[%clk 0:03:05]} 5. Be2 {[%clk 0:02:58]}  Bb7 {[%clk 0:03:06]} 6. O-O {[%clk 0:02:58]}  O-O {[%clk 0:03:06]}
7. c4 {[%clk 0:02:58]}  d6 {[%clk 0:03:06]} 8. d4 {[%clk 0:02:59]}  Nbd7 {[%clk 0:03:06]} 9. d5 {[%clk 0:02:53]}  c6 {[%clk 0:03:04]}
10. dxc6 {[%clk 0:02:25]}  Bxc6 {[%clk 0:03:05]} 11. Nd4 {[%clk 0:02:18]}  Bb7 {[%clk 0:03:06]} 12. Bf3 {[%clk 0:02:18]}  Bxf3 {[%clk 0:03:00]}
13. Qxf3 {[%clk 0:02:10]}  Ne5 {[%clk 0:03:00]} 14. Qd1 {[%clk 0:02:11]}  Rc8 {[%clk 0:03:01]} 15. Nc3 {[%clk 0:02:10]}  Nc6 {[%clk 0:02:53]}
16. Nxc6 {[%clk 0:02:06]}  Rxc6 {[%clk 0:02:53]} 17. Nd5 {[%clk 0:02:03]}  Nxd5 {[%clk 0:02:51]} 18. cxd5 {[%clk 0:01:35]}  Rc5 {[%clk 0:02:44]}
19. Bxg7 {[%clk 0:01:09]}  Kxg7 {[%clk 0:02:44]} 20. Qd4+ {[%clk 0:01:10]}  Kg8 {[%clk 0:02:45]} 21. b4 {[%clk 0:01:11]}  Rc2 {[%clk 0:02:35]}
22. h4 {[%clk 0:00:55]}  h5 {[%clk 0:02:32]} 23. a4 {[%clk 0:00:47]}  Qc7 {[%clk 0:02:33]} 24. a5 {[%clk 0:00:48]}  Qc4 {[%clk 0:01:49]}
25. axb6 {[%clk 0:00:10]}  Qxd4 {[%clk 0:01:47]} 26. exd4 {[%clk 0:00:11]}  axb6 {[%clk 0:01:48]} 27. Rfe1 {[%clk 0:00:05]}  Rc4 {[%clk 0:01:46]}
28. Rab1 {[%clk 0:00:03]}  Rxd4 {[%clk 0:01:44]} 29. Rxe7 {[%clk 0:00:04]}  Rxd5 {[%clk 0:01:45]} 30. Rb7 {[%clk 0:00:05]}  Rb5 {[%clk 0:01:46]}
31. g3 {[%clk 0:00:04]}  Rc8 {[%clk 0:01:45]} 32. Rd1 {[%clk 0:00:04]}  d5 {[%clk 0:01:45]} 33. Re1 {[%clk 0:00:04]}  Rxb4 {[%clk 0:01:44]}
34. Ree7 {[%clk 0:00:05]}  Rf8 {[%clk 0:01:45]} 35. Red7 {[%clk 0:00:06]}  d4 {[%clk 0:01:46]} 36. Kg2 {[%clk 0:00:06]}  b5 {[%clk 0:01:44]}
37. Rd5 {[%clk 0:00:06]}  Re8 {[%clk 0:01:38]} 38. Rdd7 {[%clk 0:00:06]}  Rf8 {[%clk 0:01:39]} 39. Kf3 {[%clk 0:00:07]}  Rb3+ {[%clk 0:01:38]}
40. Ke4 {[%clk 0:00:08]}  Rb2 {[%clk 0:01:39]} 41. f4 {[%clk 0:00:08]}  Rb3 {[%clk 0:01:39]} 42. Ke5 {[%clk 0:00:06]}  Rxg3 {[%clk 0:01:36]}
43. Rxd4 {[%clk 0:00:05]}  Rg4 {[%clk 0:01:36]} 44. Rxb5 {[%clk 0:00:06]}  Rxh4 {[%clk 0:01:37]} 45. Kf6 {[%clk 0:00:07]}  Rg4 {[%clk 0:01:35]}
46. Re5 {[%clk 0:00:06]}  h4 {[%clk 0:01:30]} 47. Ree4 {[%clk 0:00:07]}  Rg3 {[%clk 0:01:25]} 48. f5 {[%clk 0:00:07]}  Rf3 {[%clk 0:01:25]}
49. Rf4 {[%clk 0:00:07]}  Rxf4 {[%clk 0:01:26]} 50. Rxf4 {[%clk 0:00:08]}  gxf5 {[%clk 0:01:27]} 51. Rxh4 {[%clk 0:00:08]}  Ra8 {[%clk 0:01:23]}
52. Kxf5 {[%clk 0:00:08]}  Kg7 {[%clk 0:01:24]} 53. Rg4+ {[%clk 0:00:10]}  Kf8 {[%clk 0:01:25]} 54. Rg1 {[%clk 0:00:09]}  Ra5+ {[%clk 0:01:26]}
55. Kf6 {[%clk 0:00:10]}  Ra6+ {[%clk 0:01:27]} 56. Kf5 {[%clk 0:00:12]}  Ke7 {[%clk 0:01:29]} 57. Rb1 {[%clk 0:00:11]}  Ra5+ {[%clk 0:01:30]}
58. Kf4 {[%clk 0:00:12]}  Kf6 {[%clk 0:01:28]} 59. Rb6+ {[%clk 0:00:13]}  Kg7 {[%clk 0:01:30]} 60. Kg4 {[%clk 0:00:14]}  f6 {[%clk 0:01:31]}
61. Kf4 {[%clk 0:00:15]}  Kg6 {[%clk 0:01:32]} 62. Rc6 {[%clk 0:00:15]}  Ra4+ {[%clk 0:01:34]} 63. Kf3 {[%clk 0:00:16]}  Kg5 {[%clk 0:01:35]}
64. Kf2 {[%clk 0:00:09]}  Ra3 {[%clk 0:01:33]} 65. Rb6 {[%clk 0:00:10]}  f5 {[%clk 0:01:33]} 66. Rb4 {[%clk 0:00:10]}  Rc3 {[%clk 0:01:29]}
67. Ra4 {[%clk 0:00:11]}  f4 {[%clk 0:01:13]} 68. Ra8 {[%clk 0:00:11]}  Rc2+ {[%clk 0:01:13]} 69. Kf3 {[%clk 0:00:13]}  Rc3+ {[%clk 0:01:13]}
70. Kf2 {[%clk 0:00:14]}  Rc5 {[%clk 0:00:58]} 71. Kf3 {[%clk 0:00:13]}  Rc3+ {[%clk 0:00:59]} 72. Kf2 {[%clk 0:00:14]}  Kg4 {[%clk 0:00:55]}
73. Rg8+ {[%clk 0:00:15]}  Kf5 {[%clk 0:00:56]} 74. Rf8+ {[%clk 0:00:16]}  Ke5 {[%clk 0:00:56]} 75. Re8+ {[%clk 0:00:17]}  Kd4 {[%clk 0:00:54]}
76. Re7 {[%clk 0:00:11]}  Ra3 {[%clk 0:00:51]} 77. Re8 {[%clk 0:00:19]}  Re3 {[%clk 0:00:50]} 78. Rxe3 {[%clk 0:00:15]}  fxe3+ {[%clk 0:00:51]}
79. Ke2 {[%clk 0:00:16]}  Ke4 {[%clk 0:00:53]} 80. Kd1 {[%clk 0:00:19]}  Kd3 {[%clk 0:00:53]} 81. Ke1 {[%clk 0:00:20]}  e2 {[%clk 0:03:02]} 1/2-1/2

[Event "2026 Biel Blitz Open"]
[Site "Biel, CH"]
[Date "2026.07.19"]
[Round "5"]
[White "Huang,Hsuan-Chen"]
[Black "Savitha Shri B"]
[Result "0-1"]
[Board "22"]
[TimeControl "180+2"]
[WhiteFideId "16303121"]
[BlackFideId "35061887"]
[WhiteElo "1833"]
[BlackElo "2161"]
[BlackTitle "IM"]
[WhiteClock "0:00:27"]
[BlackClock "0:00:28"]
[Variant "Standard"]
[EndDate "2026.07.19"]
[EndTime "13:10:47"]

1. d4 {[%clk 0:03:03]}  Nf6 {[%clk 0:03:02]} 2. Nf3 {[%clk 0:03:04]}  g6 {[%clk 0:03:00]} 3. Nbd2 {[%clk 0:03:04]}  d5 {[%clk 0:03:00]}
4. e3 {[%clk 0:03:05]}  Bg7 {[%clk 0:03:02]} 5. Bd3 {[%clk 0:03:06]}  O-O {[%clk 0:03:02]} 6. O-O {[%clk 0:03:06]}  c5 {[%clk 0:03:04]}
7. c3 {[%clk 0:03:07]}  cxd4 {[%clk 0:03:00]} 8. exd4 {[%clk 0:03:08]}  Nc6 {[%clk 0:03:02]} 9. Re1 {[%clk 0:03:08]}  Nh5 {[%clk 0:03:00]}
10. Nf1 {[%clk 0:03:04]}  Qc7 {[%clk 0:03:01]} 11. Ng3 {[%clk 0:02:57]}  Nxg3 {[%clk 0:02:46]} 12. hxg3 {[%clk 0:02:57]}  Bg4 {[%clk 0:02:46]}
13. Be2 {[%clk 0:02:38]}  Rfe8 {[%clk 0:02:42]} 14. Bf4 {[%clk 0:02:37]}  Qb6 {[%clk 0:02:42]} 15. Qb3 {[%clk 0:02:38]}  Bf5 {[%clk 0:02:17]}
16. Qxb6 {[%clk 0:02:21]}  axb6 {[%clk 0:02:17]} 17. Bc7 {[%clk 0:02:22]}  h5 {[%clk 0:01:26]} 18. Bxb6 {[%clk 0:02:20]}  Bh6 {[%clk 0:01:27]}
19. Bb5 {[%clk 0:02:11]}  Be4 {[%clk 0:01:19]} 20. Ne5 {[%clk 0:01:58]}  Nxe5 {[%clk 0:01:16]} 21. dxe5 {[%clk 0:01:48]}  Rec8 {[%clk 0:01:14]}
22. e6 {[%clk 0:01:44]}  fxe6 {[%clk 0:01:01]} 23. Bd7 {[%clk 0:01:45]}  Kh7 {[%clk 0:01:02]} 24. Bxc8 {[%clk 0:01:35]}  Rxc8 {[%clk 0:01:04]}
25. f3 {[%clk 0:01:22]}  Bf5 {[%clk 0:01:06]} 26. Bd4 {[%clk 0:01:19]}  Rc4 {[%clk 0:01:03]} 27. a4 {[%clk 0:01:11]}  Kg8 {[%clk 0:01:01]}
28. a5 {[%clk 0:01:12]}  Rc6 {[%clk 0:01:02]} 29. b4 {[%clk 0:01:11]}  Bd3 {[%clk 0:01:03]} 30. Rad1 {[%clk 0:01:05]}  Bb5 {[%clk 0:01:02]}
31. Re5 {[%clk 0:01:03]}  Kf7 {[%clk 0:01:04]} 32. Kf2 {[%clk 0:00:50]}  Rc4 {[%clk 0:00:56]} 33. Rde1 {[%clk 0:00:49]}  Rc6 {[%clk 0:00:55]}
34. Bc5 {[%clk 0:00:46]}  Bd2 {[%clk 0:00:53]} 35. R1e3 {[%clk 0:00:36]}  Bxe3+ {[%clk 0:00:49]} 36. Kxe3 {[%clk 0:00:37]}  Rc8 {[%clk 0:00:49]}
37. Kf4 {[%clk 0:00:34]}  Kf6 {[%clk 0:00:46]} 38. Bd4 {[%clk 0:00:33]}  Kf7 {[%clk 0:00:41]} 39. g4 {[%clk 0:00:34]}  hxg4 {[%clk 0:00:35]}
40. Kxg4 {[%clk 0:00:35]}  Rc4 {[%clk 0:00:35]} 41. Kg5 {[%clk 0:00:31]}  Ba4 {[%clk 0:00:34]} 42. Re2 {[%clk 0:00:29]}  Bb5 {[%clk 0:00:33]}
43. Re5 {[%clk 0:00:28]}  Rc8 {[%clk 0:00:31]} 44. g4 {[%clk 0:00:26]}  Bd3 {[%clk 0:00:26]} 45. Re3 {[%clk 0:00:26]}  Bc4 {[%clk 0:00:27]}
46. Re1 {[%clk 0:00:24]}  Rf8 {[%clk 0:00:26]} 47. Rh1 {[%clk 0:00:25]}  Ke8 {[%clk 0:00:27]} 48. Rh7 {[%clk 0:00:25]}  Rxf3 {[%clk 0:00:26]}
49. Bc5 {[%clk 0:00:26]}  Rf7 {[%clk 0:00:26]} 50. Kxg6 {[%clk 0:00:27]}  Bd3+ {[%clk 0:00:28]} 0-1

[Event "2026 Biel Blitz Open"]
[Site "Biel, CH"]
[Date "2026.07.19"]
[Round "5"]
[White "Altenburger, Rene"]
[Black "Gluckman, David"]
[Result "1/2-1/2"]
[Board "23"]
[TimeControl "180+2"]
[WhiteFideId "1305581"]
[BlackFideId "14300010"]
[WhiteElo "1990"]
[BlackElo "2240"]
[BlackTitle "IM"]
[WhiteClock "0:00:31"]
[BlackClock "0:00:42"]
[Variant "Standard"]
[EndDate "2026.07.19"]
[EndTime "13:13:45"]

1. d4 {[%clk 0:03:02]}  e6 {[%clk 0:03:03]} 2. c4 {[%clk 0:03:02]}  f5 {[%clk 0:03:04]} 3. g3 {[%clk 0:03:00]}  Nf6 {[%clk 0:03:05]}
4. Bg2 {[%clk 0:03:00]}  d5 {[%clk 0:03:06]} 5. Nf3 {[%clk 0:02:48]}  c6 {[%clk 0:03:05]} 6. b3 {[%clk 0:02:46]}  Bd6 {[%clk 0:03:02]}
7. Bb2 {[%clk 0:02:47]}  O-O {[%clk 0:03:01]} 8. e3 {[%clk 0:02:45]}  Qe7 {[%clk 0:02:58]} 9. O-O {[%clk 0:02:44]}  Bd7 {[%clk 0:02:58]}
10. Nbd2 {[%clk 0:02:43]}  Be8 {[%clk 0:02:57]} 11. Qc2 {[%clk 0:02:31]}  Ne4 {[%clk 0:02:44]} 12. Ne5 {[%clk 0:02:25]}  Nd7 {[%clk 0:01:59]}
13. f4 {[%clk 0:01:57]}  Ndf6 {[%clk 0:02:11]} 14. Nxe4 {[%clk 0:01:42]}  Nxe4 {[%clk 0:02:09]} 15. Rac1 {[%clk 0:01:29]}  Bh5 {[%clk 0:02:07]}
16. Nf3 {[%clk 0:01:14]}  Bxf3 {[%clk 0:02:04]} 17. Bxf3 {[%clk 0:01:14]}  g5 {[%clk 0:01:55]} 18. Bxe4 {[%clk 0:01:15]}  fxe4 {[%clk 0:01:56]}
19. cxd5 {[%clk 0:01:09]}  exd5 {[%clk 0:01:57]} 20. Qg2 {[%clk 0:01:07]}  Rf7 {[%clk 0:01:33]} 21. fxg5 {[%clk 0:00:50]}  Qxg5 {[%clk 0:01:21]}
22. Rxf7 {[%clk 0:00:50]}  Kxf7 {[%clk 0:01:22]} 23. Rf1+ {[%clk 0:00:45]}  Ke7 {[%clk 0:01:12]} 24. Bc1 {[%clk 0:00:40]}  Rf8 {[%clk 0:01:13]}
25. Qh3 {[%clk 0:00:37]}  Rxf1+ {[%clk 0:01:11]} 26. Qxf1 {[%clk 0:00:31]}  h5 {[%clk 0:01:07]} 27. Bd2 {[%clk 0:00:25]}  Ke6 {[%clk 0:01:05]}
28. Qh3+ {[%clk 0:00:25]}  Qf5 {[%clk 0:01:07]} 29. Qxf5+ {[%clk 0:00:25]}  Kxf5 {[%clk 0:01:08]} 30. Kg2 {[%clk 0:00:25]}  Kg4 {[%clk 0:01:04]}
31. h3+ {[%clk 0:00:25]}  Kf5 {[%clk 0:01:05]} 32. a4 {[%clk 0:00:26]}  b6 {[%clk 0:01:03]} 33. Be1 {[%clk 0:00:26]}  c5 {[%clk 0:01:03]}
34. Bc3 {[%clk 0:00:19]}  a6 {[%clk 0:00:56]} 35. Kf2 {[%clk 0:00:19]}  b5 {[%clk 0:00:56]} 36. axb5 {[%clk 0:00:19]}  axb5 {[%clk 0:00:58]}
37. dxc5 {[%clk 0:00:17]}  Bxc5 {[%clk 0:00:59]} 38. Bd4 {[%clk 0:00:18]}  Bxd4 {[%clk 0:00:51]} 39. exd4 {[%clk 0:00:19]}  Kg5 {[%clk 0:00:51]}
40. Ke3 {[%clk 0:00:20]}  Kf5 {[%clk 0:00:52]} 41. Kf2 {[%clk 0:00:21]}  b4 {[%clk 0:00:43]} 42. Ke3 {[%clk 0:00:22]}  Kg5 {[%clk 0:00:44]}
43. Kf2 {[%clk 0:00:24]}  h4 {[%clk 0:00:42]} 44. g4 {[%clk 0:00:26]}  Kf4 {[%clk 0:00:43]} 45. Ke2 {[%clk 0:00:27]}  Kg5 {[%clk 0:00:39]}
46. Ke3 {[%clk 0:00:28]}  Kg6 {[%clk 0:00:38]} 47. Kf4 {[%clk 0:00:29]}  Kf6 {[%clk 0:00:39]} 48. Ke3 {[%clk 0:00:30]}  Kg6 {[%clk 0:00:40]}
49. Kf4 {[%clk 0:00:31]}  Kf6 {[%clk 0:00:42]} 1/2-1/2

[Event "2026 Biel Blitz Open"]
[Site "Biel, CH"]
[Date "2026.07.19"]
[Round "5"]
[White "Dai, Wenzhi"]
[Black "Schweizer, Simon"]
[Result "0-1"]
[Board "25"]
[TimeControl "180+2"]
[WhiteFideId "8608369"]
[BlackFideId "1325361"]
[WhiteElo "1943"]
[BlackElo "2182"]
[WhiteClock "0:00:04"]
[BlackClock "0:01:34"]
[Variant "Standard"]
[EndDate "2026.07.19"]
[EndTime "13:13:07"]

1. e4 {[%clk 0:03:03]}  e5 {[%clk 0:03:04]} 2. Nf3 {[%clk 0:03:04]}  Nc6 {[%clk 0:03:05]} 3. Bb5 {[%clk 0:03:05]}  a6 {[%clk 0:03:06]}
4. Ba4 {[%clk 0:03:06]}  Nf6 {[%clk 0:03:07]} 5. O-O {[%clk 0:03:06]}  Be7 {[%clk 0:03:08]} 6. Re1 {[%clk 0:03:08]}  b5 {[%clk 0:03:10]}
7. Bb3 {[%clk 0:03:09]}  d6 {[%clk 0:03:11]} 8. c3 {[%clk 0:03:10]}  O-O {[%clk 0:03:11]} 9. h3 {[%clk 0:03:11]}  Nb8 {[%clk 0:03:12]}
10. d4 {[%clk 0:03:12]}  Nbd7 {[%clk 0:03:14]} 11. a4 {[%clk 0:03:12]}  Bb7 {[%clk 0:03:15]} 12. Nbd2 {[%clk 0:03:12]}  c5 {[%clk 0:03:16]}
13. Bc2 {[%clk 0:03:13]}  Qc7 {[%clk 0:03:17]} 14. d5 {[%clk 0:03:12]}  c4 {[%clk 0:03:18]} 15. Nf1 {[%clk 0:03:13]}  Nc5 {[%clk 0:03:19]}
16. Ng3 {[%clk 0:03:13]}  g6 {[%clk 0:03:20]} 17. Qe2 {[%clk 0:02:59]}  Rfb8 {[%clk 0:03:21]} 18. Be3 {[%clk 0:02:40]}  Bc8 {[%clk 0:03:21]}
19. Nd2 {[%clk 0:02:41]}  Bd7 {[%clk 0:03:16]} 20. axb5 {[%clk 0:02:28]}  axb5 {[%clk 0:03:17]} 21. Qf3 {[%clk 0:02:22]}  Na4 {[%clk 0:03:14]}
22. Bg5 {[%clk 0:01:59]}  Nxd5 {[%clk 0:03:14]} 23. exd5 {[%clk 0:01:48]}  Bxg5 {[%clk 0:03:14]} 24. Nde4 {[%clk 0:01:48]}  Be7 {[%clk 0:03:15]}
25. Nf6+ {[%clk 0:01:33]}  Kg7 {[%clk 0:03:14]} 26. Ngh5+ {[%clk 0:00:55]}  gxh5 {[%clk 0:02:58]} 27. Nxh5+ {[%clk 0:00:38]}  Kf8 {[%clk 0:02:53]}
28. Bxh7 {[%clk 0:00:27]}  Nc5 {[%clk 0:02:31]} 29. Qg3 {[%clk 0:00:25]}  Ke8 {[%clk 0:02:32]} 30. Qg8+ {[%clk 0:00:16]}  Bf8 {[%clk 0:02:33]}
31. Nf6+ {[%clk 0:00:16]}  Ke7 {[%clk 0:02:34]} 32. Qg5 {[%clk 0:00:16]}  Kd8 {[%clk 0:02:29]} 33. Rad1 {[%clk 0:00:09]}  Kc8 {[%clk 0:02:29]}
34. f4 {[%clk 0:00:09]}  Kb7 {[%clk 0:02:28]} 35. fxe5 {[%clk 0:00:10]}  dxe5 {[%clk 0:02:29]} 36. Rxe5 {[%clk 0:00:09]}  Bd6 {[%clk 0:02:29]}
37. Ree1 {[%clk 0:00:07]}  Ra2 {[%clk 0:02:24]} 38. Re2 {[%clk 0:00:07]}  Na4 {[%clk 0:02:19]} 39. Rdd2 {[%clk 0:00:03]}  Ra1+ {[%clk 0:02:17]}
40. Kf2 {[%clk 0:00:04]}  Bc5+ {[%clk 0:02:15]} 41. Kf3 {[%clk 0:00:03]}  Rf1+ {[%clk 0:02:15]} 42. Ke4 {[%clk 0:00:04]}  Bb6 {[%clk 0:02:09]}
43. d6 {[%clk 0:00:03]}  Nc5+ {[%clk 0:02:05]} 44. Ke5 {[%clk 0:00:04]}  Qc8 {[%clk 0:01:55]} 45. Rd5 {[%clk 0:00:04]}  Bc6 {[%clk 0:01:45]}
46. d7 {[%clk 0:00:03]}  Qc7+ {[%clk 0:01:44]} 47. Rd6 {[%clk 0:00:04]}  Ne6 {[%clk 0:01:34]} 48. Qg3 {[%clk 0:00:00]} 0-1

[Event "2026 Biel Blitz Open"]
[Site "Biel, CH"]
[Date "2026.07.19"]
[Round "5"]
[White "Ragavan, Samarth Rajesh"]
[Black "Alexakis, Dimitrios"]
[Result "1/2-1/2"]
[Board "26"]
[TimeControl "180+2"]
[WhiteFideId "39918106"]
[BlackFideId "4200527"]
[WhiteElo "2101"]
[BlackElo "1895"]
[WhiteClock "0:00:20"]
[BlackClock "0:00:18"]
[Variant "Standard"]
[EndDate "2026.07.19"]
[EndTime "13:15:35"]

1. d4 {[%clk 0:03:04]}  Nf6 {[%clk 0:03:02]} 2. c4 {[%clk 0:03:05]}  c5 {[%clk 0:03:03]} 3. Nf3 {[%clk 0:03:06]}  cxd4 {[%clk 0:03:02]}
4. Nxd4 {[%clk 0:03:07]}  e5 {[%clk 0:03:03]} 5. Nb3 {[%clk 0:03:08]}  d5 {[%clk 0:02:58]} 6. cxd5 {[%clk 0:03:09]}  Qxd5 {[%clk 0:02:58]}
7. Qxd5 {[%clk 0:03:09]}  Nxd5 {[%clk 0:02:59]} 8. g3 {[%clk 0:03:05]}  Nc6 {[%clk 0:02:55]} 9. Bg2 {[%clk 0:03:06]}  Be6 {[%clk 0:02:56]}
10. O-O {[%clk 0:03:06]}  Be7 {[%clk 0:02:49]} 11. Bd2 {[%clk 0:03:07]}  O-O {[%clk 0:02:48]} 12. Nc3 {[%clk 0:03:08]}  Nxc3 {[%clk 0:02:36]}
13. Bxc3 {[%clk 0:03:09]}  f6 {[%clk 0:02:37]} 14. Rac1 {[%clk 0:03:09]}  Rac8 {[%clk 0:02:33]} 15. Rfd1 {[%clk 0:03:07]}  b6 {[%clk 0:02:07]}
16. Nd2 {[%clk 0:02:41]}  Nd4 {[%clk 0:01:56]} 17. Bxd4 {[%clk 0:02:41]}  exd4 {[%clk 0:01:57]} 18. b3 {[%clk 0:02:42]}  Ba3 {[%clk 0:01:45]}
19. Rxc8 {[%clk 0:02:42]}  Rxc8 {[%clk 0:01:46]} 20. Nf3 {[%clk 0:02:42]}  Bc5 {[%clk 0:01:34]} 21. h3 {[%clk 0:02:09]}  Kf7 {[%clk 0:01:24]}
22. Nxd4 {[%clk 0:02:07]}  Bxd4 {[%clk 0:01:25]} 23. Rxd4 {[%clk 0:02:08]}  Rc1+ {[%clk 0:01:21]} 24. Kh2 {[%clk 0:02:09]}  Rc2 {[%clk 0:01:22]}
25. Ra4 {[%clk 0:02:06]}  a5 {[%clk 0:01:13]} 26. Bf3 {[%clk 0:02:06]}  g6 {[%clk 0:00:56]} 27. g4 {[%clk 0:01:50]}  g5 {[%clk 0:00:52]}
28. Kg3 {[%clk 0:01:47]}  Rc1 {[%clk 0:00:52]} 29. b4 {[%clk 0:01:39]}  Bd7 {[%clk 0:00:42]} 30. Ra3 {[%clk 0:01:40]}  a4 {[%clk 0:00:33]}
31. Bd5+ {[%clk 0:01:35]}  Ke7 {[%clk 0:00:32]} 32. Re3+ {[%clk 0:01:24]}  Kd6 {[%clk 0:00:32]} 33. Rd3 {[%clk 0:01:24]}  Ke7 {[%clk 0:00:34]}
34. a3 {[%clk 0:01:11]}  b5 {[%clk 0:00:30]} 35. Be4 {[%clk 0:01:09]}  Re1 {[%clk 0:00:28]} 36. Bxh7 {[%clk 0:01:00]}  Rxe2 {[%clk 0:00:29]}
37. Re3+ {[%clk 0:01:01]}  Rxe3+ {[%clk 0:00:29]} 38. fxe3 {[%clk 0:01:03]}  Kd6 {[%clk 0:00:28]} 39. Bd3 {[%clk 0:00:57]}  Ke5 {[%clk 0:00:28]}
40. h4 {[%clk 0:00:45]}  gxh4+ {[%clk 0:00:29]} 41. Kxh4 {[%clk 0:00:46]}  Be8 {[%clk 0:00:25]} 42. g5 {[%clk 0:00:44]}  fxg5+ {[%clk 0:00:25]}
43. Kxg5 {[%clk 0:00:46]}  Bd7 {[%clk 0:00:25]} 44. Kg6 {[%clk 0:00:37]}  Be8+ {[%clk 0:00:26]} 45. Kg7 {[%clk 0:00:38]}  Bd7 {[%clk 0:00:23]}
46. Kf7 {[%clk 0:00:35]}  Be6+ {[%clk 0:00:22]} 47. Ke7 {[%clk 0:00:36]}  Bc4 {[%clk 0:00:23]} 48. Bxc4 {[%clk 0:00:31]}  bxc4 {[%clk 0:00:24]}
49. b5 {[%clk 0:00:32]}  c3 {[%clk 0:00:23]} 50. b6 {[%clk 0:00:34]}  c2 {[%clk 0:00:24]} 51. b7 {[%clk 0:00:35]}  c1=Q {[%clk 0:00:24]}
52. b8=Q+ {[%clk 0:00:36]}  Kf5 {[%clk 0:00:23]} 53. Qb5+ {[%clk 0:00:34]}  Kg6 {[%clk 0:00:23]} 54. Qxa4 {[%clk 0:00:26]}  Qxe3+ {[%clk 0:00:24]}
55. Kd6 {[%clk 0:00:27]}  Qd3+ {[%clk 0:00:22]} 56. Kc5 {[%clk 0:00:27]}  Qc3+ {[%clk 0:00:22]} 57. Kb5 {[%clk 0:00:27]}  Qe5+ {[%clk 0:00:22]}
58. Ka6 {[%clk 0:00:26]}  Qd6+ {[%clk 0:00:21]} 59. Kb7 {[%clk 0:00:23]}  Qe7+ {[%clk 0:00:16]} 60. Kb6 {[%clk 0:00:23]}  Qe3+ {[%clk 0:00:16]}
61. Kb5 {[%clk 0:00:18]}  Qd3+ {[%clk 0:00:17]} 62. Kb4 {[%clk 0:00:20]}  Qd4+ {[%clk 0:00:18]} 63. Ka5 {[%clk 0:00:17]}  Qa7+ {[%clk 0:00:16]}
64. Kb4 {[%clk 0:00:20]}  Qd4+ {[%clk 0:00:17]} 65. Kb3 {[%clk 0:00:19]}  Qd1+ {[%clk 0:00:17]} 66. Kb4 {[%clk 0:00:20]}  Qd4+ {[%clk 0:00:18]}
67. Ka5 {[%clk 0:00:20]}  Qa7+ {[%clk 0:00:19]} 68. Kb5 {[%clk 0:00:17]}  Qd7+ {[%clk 0:00:20]} 69. Kb4 {[%clk 0:00:18]}  Qd4+ {[%clk 0:00:21]}
70. Kb5 {[%clk 0:00:10]}  Qd7+ {[%clk 0:00:22]} 71. Ka5 {[%clk 0:00:10]}  Qa7+ {[%clk 0:00:24]} 72. Kb4 {[%clk 0:00:11]}  Qd4+ {[%clk 0:00:25]}
73. Kb3 {[%clk 0:00:12]}  Qd1+ {[%clk 0:00:26]} 74. Kb4 {[%clk 0:00:12]}  Qd4+ {[%clk 0:00:27]} 75. Kb5 {[%clk 0:00:10]}  Qd7+ {[%clk 0:00:28]}
76. Ka5 {[%clk 0:00:12]}  Qa7+ {[%clk 0:00:29]} 1/2-1/2

[Event "2026 Biel Blitz Open"]
[Site "Biel, CH"]
[Date "2026.07.19"]
[Round "5"]
[White "Hirzel, Robin"]
[Black "Harish, Neeraj"]
[Result "0-1"]
[Board "27"]
[TimeControl "180+2"]
[WhiteFideId "1342320"]
[BlackFideId "30958130"]
[WhiteElo "2022"]
[BlackElo "1920"]
[BlackTitle "CM"]
[WhiteClock "0:01:22"]
[BlackClock "0:00:36"]
[Variant "Standard"]
[EndDate "2026.07.19"]
[EndTime "13:08:02"]

1. e4 {[%clk 0:03:03]}  e5 {[%clk 0:03:03]} 2. Nc3 {[%clk 0:03:04]}  Nf6 {[%clk 0:03:01]} 3. f4 {[%clk 0:03:02]}  d5 {[%clk 0:03:01]}
4. fxe5 {[%clk 0:03:02]}  Nxe4 {[%clk 0:03:02]} 5. Qf3 {[%clk 0:03:03]}  Nxc3 {[%clk 0:02:59]} 6. dxc3 {[%clk 0:03:04]}  Be7 {[%clk 0:02:57]}
7. Be3 {[%clk 0:02:55]}  c5 {[%clk 0:02:54]} 8. Bb5+ {[%clk 0:02:51]}  Nc6 {[%clk 0:02:55]} 9. Bxc6+ {[%clk 0:02:51]}  bxc6 {[%clk 0:02:55]}
10. Ne2 {[%clk 0:02:52]}  Be6 {[%clk 0:02:55]} 11. O-O {[%clk 0:02:53]}  O-O {[%clk 0:02:52]} 12. Nf4 {[%clk 0:02:43]}  Qb8 {[%clk 0:02:34]}
13. Nxe6 {[%clk 0:02:36]}  fxe6 {[%clk 0:02:34]} 14. Qg3 {[%clk 0:02:31]}  Kh8 {[%clk 0:02:04]} 15. Rxf8+ {[%clk 0:02:29]}  Bxf8 {[%clk 0:02:03]}
16. b3 {[%clk 0:02:26]}  Qc7 {[%clk 0:01:51]} 17. Rf1 {[%clk 0:02:26]}  g6 {[%clk 0:01:46]} 18. Rf6 {[%clk 0:02:02]}  Re8 {[%clk 0:01:39]}
19. Qf4 {[%clk 0:01:57]}  Bg7 {[%clk 0:01:34]} 20. Rf7 {[%clk 0:01:58]}  Qxe5 {[%clk 0:01:31]} 21. Qxe5 {[%clk 0:01:49]}  Bxe5 {[%clk 0:01:32]}
22. Bxc5 {[%clk 0:01:50]}  a5 {[%clk 0:01:27]} 23. Bd4 {[%clk 0:01:49]}  Bxd4+ {[%clk 0:01:27]} 24. cxd4 {[%clk 0:01:50]}  e5 {[%clk 0:01:20]}
25. dxe5 {[%clk 0:01:46]}  Rxe5 {[%clk 0:01:21]} 26. Rc7 {[%clk 0:01:44]}  Re6 {[%clk 0:01:05]} 27. Kf2 {[%clk 0:01:46]}  d4 {[%clk 0:00:58]}
28. a4 {[%clk 0:01:38]}  Kg8 {[%clk 0:00:58]} 29. Kf3 {[%clk 0:01:32]}  Re3+ {[%clk 0:00:55]} 30. Kf2 {[%clk 0:01:26]}  Rc3 {[%clk 0:00:56]}
31. Rd7 {[%clk 0:01:23]}  Rxc2+ {[%clk 0:00:55]} 32. Kf3 {[%clk 0:01:25]}  c5 {[%clk 0:00:55]} 33. Ra7 {[%clk 0:01:25]}  Rc3+ {[%clk 0:00:54]}
34. Ke4 {[%clk 0:01:26]}  Rxb3 {[%clk 0:00:55]} 35. Rxa5 {[%clk 0:01:27]}  Re3+ {[%clk 0:00:53]} 36. Kf4 {[%clk 0:01:27]}  Rc3 {[%clk 0:00:50]}
37. Ke4 {[%clk 0:01:27]}  Kf7 {[%clk 0:00:51]} 38. Ra7+ {[%clk 0:01:29]}  Kf6 {[%clk 0:00:52]} 39. a5 {[%clk 0:01:30]}  Ra3 {[%clk 0:00:49]}
40. Kd5 {[%clk 0:01:31]}  d3 {[%clk 0:00:35]} 41. Kxc5 {[%clk 0:01:31]}  d2 {[%clk 0:00:36]} 42. Rd7 {[%clk 0:01:31]}  Rxa5+ {[%clk 0:00:37]}
43. Kb4 {[%clk 0:01:32]}  Ra2 {[%clk 0:00:33]} 44. Kc3 {[%clk 0:01:29]}  d1=Q {[%clk 0:00:33]} 45. Rxd1 {[%clk 0:01:30]}  Rxg2 {[%clk 0:00:34]}
46. Rh1 {[%clk 0:01:22]}  Kg5 {[%clk 0:00:34]} 47. Kd3 {[%clk 0:01:24]}  Kh4 {[%clk 0:00:34]} 48. Ke3 {[%clk 0:01:22]}  Kh3 {[%clk 0:00:36]}
49. Rf1 {[%clk 0:01:23]}  h5 {[%clk 0:00:34]} 50. Rf6 {[%clk 0:01:20]}  Kxh2 {[%clk 0:00:34]} 51. Kf3 {[%clk 0:01:21]}  Rg4 {[%clk 0:00:34]}
52. Rf8 {[%clk 0:01:22]}  Kh3 {[%clk 0:00:34]} 53. Rf7 {[%clk 0:01:21]}  Ra4 {[%clk 0:00:34]} 54. Rf6 {[%clk 0:01:21]}  g5 {[%clk 0:00:35]}
55. Rf5 {[%clk 0:01:21]}  g4+ {[%clk 0:00:36]} 56. Kf2 {[%clk 0:01:22]}  h4 {[%clk 0:00:36]} 0-1